[Event "British Rapidplay Championship 2023"]
[Site "Mercure Bradford, Bankfield Hotel"]
[Date "2023.04.16"]
[Round "9.20"]
[White "Nicholson, Jim WR"]
[Black "Patrick, Chaski"]
[Result "1/2-1/2"]
[TimeControl "15 minutes plus 10 seconds per move"]
[WhiteElo "1958"]
[BlackElo "2032"]

1. d4 {[%clk 00:15:17]} {[%emt 00:00:03]} Nf6 {[%clk 00:14:48]} {[%emt
00:00:33]} 2. Nf3 {[%clk 00:15:24]} {[%emt 00:00:03]} g6 {[%clk 00:14:50]}
{[%emt 00:00:08]} 3. Bg5 {[%clk 00:15:32]} {[%emt 00:00:02]} Bg7 {[%clk
00:14:57]} {[%emt 00:00:03]} 4. Nbd2 {[%clk 00:15:40]} {[%emt 00:00:02]} c5
{[%clk 00:14:32]} {[%emt 00:00:35]} 5. e3 {[%clk 00:15:40]} {[%emt 00:00:09]}
d5 {[%clk 00:14:28]} {[%emt 00:00:15]} 6. c3 {[%clk 00:15:35]} {[%emt
00:00:15]} Nbd7 {[%clk 00:14:24]} {[%emt 00:00:14]} 7. Bd3 {[%clk 00:15:28]}
{[%emt 00:00:16]} Qb6 {[%clk 00:12:48]} {[%emt 00:01:48]} 8. Rb1 {[%clk
00:15:24]} {[%emt 00:00:13]} O-O {[%clk 00:12:30]} {[%emt 00:00:28]} 9. O-O
{[%clk 00:15:30]} {[%emt 00:00:04]} Re8 {[%clk 00:12:37]} {[%emt 00:00:03]} 10.
b4 {[%clk 00:13:44]} {[%emt 00:01:55]} c4 {[%clk 00:12:09]} {[%emt 00:00:39]}
11. Bc2 {[%clk 00:13:50]} {[%emt 00:00:04]} e5 {[%clk 00:12:11]} {[%emt
00:00:08]} 12. dxe5 {[%clk 00:13:53]} {[%emt 00:00:06]} Nxe5 {[%clk 00:12:06]}
{[%emt 00:00:15]} 13. Nxe5 {[%clk 00:13:52]} {[%emt 00:00:12]} Rxe5 {[%clk
00:12:15]} 14. Nf3 {[%clk 00:13:56]} {[%emt 00:00:05]} Re8 {[%clk 00:12:14]}
{[%emt 00:00:11]} 15. Nd4 {[%clk 00:13:20]} {[%emt 00:00:45]} Ne4 {[%clk
00:12:09]} {[%emt 00:00:16]} 16. Bxe4 {[%clk 00:13:02]} {[%emt 00:00:29]} Rxe4
{[%clk 00:11:12]} {[%emt 00:01:06]} 17. a4 {[%clk 00:12:12]} {[%emt 00:01:00]}
Bd7 {[%clk 00:10:20]} {[%emt 00:01:03]} 18. a5 {[%clk 00:12:05]} {[%emt
00:00:17]} Qd6 {[%clk 00:10:15]} {[%emt 00:00:14]} 19. Qd2 {[%clk 00:11:25]}
{[%emt 00:00:51]} Rae8 {[%clk 00:09:24]} {[%emt 00:01:02]} 20. Rbe1 {[%clk
00:10:45]} {[%emt 00:00:49]} Bxd4 {[%clk 00:08:50]} {[%emt 00:00:44]} 21. exd4
{[%clk 00:10:08]} {[%emt 00:00:46]} Bf5 {[%clk 00:08:01]} {[%emt 00:01:00]} 22.
Re3 {[%clk 00:08:54]} {[%emt 00:01:24]} f6 {[%clk 00:07:50]} {[%emt 00:00:21]}
23. Rxe4 {[%clk 00:08:17]} {[%emt 00:00:47]} Rxe4 {[%clk 00:07:15]} {[%emt
00:00:45]} 24. Be3 {[%clk 00:08:04]} {[%emt 00:00:23]} Qe7 {[%clk 00:05:11]}
{[%emt 00:02:14]} 25. Re1 {[%clk 00:07:46]} {[%emt 00:00:27]} Re6 {[%clk
00:05:19]} {[%emt 00:00:03]} 26. f3 {[%clk 00:07:29]} {[%emt 00:00:27]} Bd3
{[%clk 00:05:19]} {[%emt 00:00:10]} 27. Bf2 {[%clk 00:07:30]} {[%emt 00:00:09]}
a6 {[%clk 00:03:55]} {[%emt 00:01:34]} 28. Rxe6 {[%clk 00:07:09]} {[%emt
00:00:31]} Qxe6 {[%clk 00:04:04]} {[%emt 00:00:01]} 29. Qe3 {[%clk 00:07:16]}
{[%emt 00:00:02]} Qxe3 {[%clk 00:03:49]} {[%emt 00:00:26]} 30. Bxe3 {[%clk
00:07:25]} {[%emt 00:00:01]} Kf7 {[%clk 00:03:58]} {[%emt 00:00:01]} 31. Kf2
{[%clk 00:07:28]} {[%emt 00:00:07]} Ke6 {[%clk 00:04:07]} {[%emt 00:00:01]} 32.
Bf4 {[%clk 00:07:20]} {[%emt 00:00:17]} Kd7 {[%clk 00:04:13]} {[%emt 00:00:05]}
33. Ke3 {[%clk 00:07:22]} {[%emt 00:00:08]} Kc6 {[%clk 00:04:22]} {[%emt
00:00:01]} 34. h4 {[%clk 00:06:51]} {[%emt 00:00:41]} Kb5 {[%clk 00:04:10]}
{[%emt 00:00:21]} 35. Bh6 {[%clk 00:06:51]} {[%emt 00:00:11]} Ka4 {[%clk
00:04:11]} {[%emt 00:00:09]} 36. f4 {[%clk 00:06:33]} {[%emt 00:00:28]} Kb3
{[%clk 00:02:52]} {[%emt 00:01:30]} 37. Kd2 {[%clk 00:06:42]} {[%emt 00:00:01]}
f5 {[%clk 00:02:54]} {[%emt 00:00:07]} 38. g3 {[%clk 00:06:45]} {[%emt
00:00:07]} Be4 {[%clk 00:02:59]} {[%emt 00:00:05]} 39. Bg7 {[%clk 00:06:49]}
{[%emt 00:00:06]} 1/2-1/2

[Event "British Rapidplay Championship 2023"]
[Site "Mercure Bradford, Bankfield Hotel"]
[Date "2023.04.16"]
[Round "9.23"]
[White "Brencher, Paul"]
[Black "Winter, Kevin"]
[Result "1-0"]
[TimeControl "15 minutes plus 10 seconds per move"]
[WhiteElo "1929"]
[BlackElo "1815"]

1. d4 {[%clk 00:15:15]} {[%emt 00:00:05]} d6 {[%clk 00:15:16]} {[%emt
00:00:04]} 2. e4 {[%clk 00:15:02]} {[%emt 00:00:23]} Nf6 {[%clk 00:15:24]}
{[%emt 00:00:02]} 3. Nc3 {[%clk 00:15:09]} {[%emt 00:00:04]} Nbd7 {[%clk
00:15:32]} {[%emt 00:00:02]} 4. Nf3 {[%clk 00:15:01]} {[%emt 00:00:18]} e5
{[%clk 00:15:41]} {[%emt 00:00:02]} 5. Bc4 {[%clk 00:14:37]} {[%emt 00:00:34]}
Be7 {[%clk 00:15:49]} {[%emt 00:00:02]} 6. O-O {[%clk 00:13:58]} {[%emt
00:00:49]} c6 {[%clk 00:15:53]} {[%emt 00:00:06]} 7. a4 {[%clk 00:13:12]}
{[%emt 00:00:56]} Qc7 {[%clk 00:16:01]} {[%emt 00:00:02]} 8. h3 {[%clk
00:12:44]} {[%emt 00:00:38]} h6 {[%clk 00:15:59]} {[%emt 00:00:12]} 9. Be3
{[%clk 00:11:56]} {[%emt 00:00:58]} g5 {[%clk 00:15:32]} {[%emt 00:00:36]} 10.
dxe5 {[%clk 00:06:27]} {[%emt 00:05:39]} dxe5 {[%clk 00:14:41]} {[%emt
00:01:02]} 11. Nh2 {[%clk 00:03:17]} {[%emt 00:03:20]} Nf8 {[%clk 00:14:40]}
{[%emt 00:00:11]} 12. Be2 {[%clk 00:02:45]} {[%emt 00:00:42]} Ng6 {[%clk
00:14:06]} {[%emt 00:00:43]} 13. Ng4 {[%clk 00:02:30]} {[%emt 00:00:25]} Bxg4
{[%clk 00:13:56]} {[%emt 00:00:20]} 14. Bxg4 {[%clk 00:02:27]} {[%emt
00:00:14]} Rd8 {[%clk 00:12:13]} {[%emt 00:01:52]} 15. Qe2 {[%clk 00:02:34]}
{[%emt 00:00:03]} Nf4 {[%clk 00:10:52]} {[%emt 00:01:31]} 16. Bxf4 {[%clk
00:02:09]} {[%emt 00:00:36]} gxf4 {[%clk 00:11:00]} {[%emt 00:00:02]} 17. Rfd1
{[%clk 00:02:05]} {[%emt 00:00:14]} Rg8 {[%clk 00:09:08]} {[%emt 00:02:02]} 18.
Bf5 {[%clk 00:01:58]} {[%emt 00:00:17]} h5 {[%clk 00:07:09]} {[%emt 00:02:10]}
19. Qc4 {[%clk 00:02:05]} {[%emt 00:00:03]} f3 {[%clk 00:06:38]} {[%emt
00:00:41]} 20. g3 {[%clk 00:01:38]} {[%emt 00:00:37]} Qb6 {[%clk 00:06:04]}
{[%emt 00:00:44]} 21. Rxd8+ {[%clk 00:01:05]} {[%emt 00:00:44]} Bxd8 {[%clk
00:05:39]} {[%emt 00:00:35]} 22. b4 {[%clk 00:01:03]} {[%emt 00:00:12]} Rxg3+
{[%clk 00:05:45]} {[%emt 00:00:03]} 23. Kf1 {[%clk 00:00:38]} {[%emt 00:00:35]}
Rg2 {[%clk 00:05:33]} {[%emt 00:00:22]} 24. Nd1 {[%clk 00:00:38]} {[%emt
00:00:10]} Qd4 {[%clk 00:05:24]} {[%emt 00:00:19]} 25. Qxd4 {[%clk 00:00:40]}
{[%emt 00:00:08]} exd4 {[%clk 00:05:32]} {[%emt 00:00:03]} 26. Ra3 {[%clk
00:00:41]} {[%emt 00:00:09]} Be7 {[%clk 00:05:19]} {[%emt 00:00:22]} 27. Rxf3
{[%clk 00:00:40]} {[%emt 00:00:12]} Rg5 {[%clk 00:05:05]} {[%emt 00:00:23]} 28.
Rb3 {[%clk 00:00:44]} {[%emt 00:00:07]} h4 {[%clk 00:04:19]} {[%emt 00:00:55]}
29. Nb2 {[%clk 00:00:26]} {[%emt 00:00:28]} b6 {[%clk 00:03:29]} {[%emt
00:01:01]} 30. Nd3 {[%clk 00:00:31]} {[%emt 00:00:06]} Nd7 {[%clk 00:03:12]}
{[%emt 00:00:27]} 31. Bxd7+ {[%clk 00:00:15]} {[%emt 00:00:26]} Kxd7 {[%clk
00:03:20]} {[%emt 00:00:01]} 32. Nf4 {[%clk 00:00:15]} {[%emt 00:00:10]} Bd6
{[%clk 00:03:06]} {[%emt 00:00:25]} 33. Ng2 {[%clk 00:00:21]} {[%emt 00:00:03]}
Rh5 {[%clk 00:02:41]} {[%emt 00:00:35]} 34. Ke2 {[%clk 00:00:23]} {[%emt
00:00:09]} c5 {[%clk 00:02:50]} {[%emt 00:00:01]} 35. b5 {[%clk 00:00:13]}
{[%emt 00:00:20]} Re5 {[%clk 00:02:26]} {[%emt 00:00:34]} 36. Kd3 {[%clk
00:00:13]} {[%emt 00:00:10]} Rg5 {[%clk 00:02:24]} {[%emt 00:00:11]} 37. Nxh4
{[%clk 00:00:20]} {[%emt 00:00:04]} Rh5 {[%clk 00:02:25]} {[%emt 00:00:09]} 38.
Nf5 {[%clk 00:00:12]} {[%emt 00:00:18]} Rxh3+ {[%clk 00:02:33]} {[%emt
00:00:01]} 39. Kc4 {[%clk 00:00:19]} {[%emt 00:00:04]} Rxb3 {[%clk 00:02:03]}
{[%emt 00:00:40]} 40. Kxb3 {[%clk 00:00:22]} {[%emt 00:00:07]} Bf4 {[%clk
00:02:01]} {[%emt 00:00:12]} 41. Kc4 {[%clk 00:00:31]} {[%emt 00:00:02]} Ke6
{[%clk 00:01:49]} {[%emt 00:00:21]} 42. f3 {[%clk 00:00:40]} Be5 {[%clk
00:01:45]} {[%emt 00:00:14]} 43. a5 {[%clk 00:00:23]} {[%emt 00:00:27]} Bc7
{[%clk 00:01:38]} {[%emt 00:00:17]} 44. a6 {[%clk 00:00:32]} {[%emt 00:00:02]}
Be5 {[%clk 00:01:38]} {[%emt 00:00:09]} 45. Nh4 {[%clk 00:00:38]} {[%emt
00:00:04]} Bb8 {[%clk 00:01:11]} {[%emt 00:00:37]} 46. Nf5 {[%clk 00:00:40]}
{[%emt 00:00:07]} Be5 {[%clk 00:01:15]} {[%emt 00:00:06]} 47. Nh4 {[%clk
00:00:49]} {[%emt 00:00:02]} Bc7 {[%clk 00:01:00]} {[%emt 00:00:21]} 48. Nf5
{[%clk 00:00:59]} {[%emt 00:00:04]} Bf4 {[%clk 00:01:08]} {[%emt 00:00:02]} 49.
Nh4 {[%clk 00:01:06]} {[%emt 00:00:03]} Bc7 {[%clk 00:01:13]} {[%emt 00:00:04]}
50. Ng2 {[%clk 00:00:58]} {[%emt 00:00:18]} Bb8 {[%clk 00:00:45]} {[%emt
00:00:38]} 51. Ne1 {[%clk 00:01:03]} {[%emt 00:00:05]} f5 {[%clk 00:00:39]}
{[%emt 00:00:16]} 52. exf5+ {[%clk 00:00:51]} {[%emt 00:00:22]} Kxf5 {[%clk
00:00:48]} 53. Kd5 {[%clk 00:01:01]} Kf4 {[%clk 00:00:36]} {[%emt 00:00:22]} 54.
Kc6 {[%clk 00:01:09]} {[%emt 00:00:02]} c4 {[%clk 00:00:33]} {[%emt 00:00:13]}
55. Kb7 {[%clk 00:01:05]} {[%emt 00:00:15]} Bd6 {[%clk 00:00:15]} {[%emt
00:00:28]} 56. Kxa7 {[%clk 00:01:14]} {[%emt 00:00:01]} Ke3 {[%clk 00:00:13]}
{[%emt 00:00:12]} 57. Kxb6 {[%clk 00:01:06]} {[%emt 00:00:18]} Bb4 {[%clk
00:00:22]} {[%emt 00:00:01]} 58. a7 {[%clk 00:01:12]} {[%emt 00:00:03]} d3
{[%clk 00:00:11]} {[%emt 00:00:21]} 59. cxd3 {[%clk 00:01:15]} {[%emt
00:00:08]} c3 {[%clk 00:00:12]} {[%emt 00:00:09]} 60. Nc2+ {[%clk 00:01:18]}
{[%emt 00:00:07]} 1-0

[ePGN "0.1;DGT LiveChess/2.2.5"]